[Event "Early-Titled-Tuesday-Blitz-May-28-2024"]
[Site "Chess.com"]
[Date "2024.05.28"]
[Round "9"]
[White "AwareIdea"]
[Black "GrotBchess"]
[Result "0-1"]
[WhiteElo "2476"]
[BlackElo "2586"]
[TimeControl "180+1"]
[EndTime "9:47:13 PDT"]
[Termination "GrotBchess won by resignation"]

1. c4 {[%clk 0:02:58.1]} 1... e5 {[%clk 0:02:59.7]} 2. Nc3 {[%clk 0:02:57.7]}
2... Nf6 {[%clk 0:02:59.7]} 3. Nf3 {[%clk 0:02:57.9]} 3... e4 {[%clk 0:03:00]}
4. Ng5 {[%clk 0:02:57.3]} 4... c6 {[%clk 0:03:00.4]} 5. Ngxe4 {[%clk 0:02:52.9]}
5... Nxe4 {[%clk 0:03:00.6]} 6. Nxe4 {[%clk 0:02:53.8]} 6... d5 {[%clk
0:03:00.6]} 7. cxd5 {[%clk 0:02:53.6]} 7... cxd5 {[%clk 0:03:01.5]} 8. Nc3
{[%clk 0:02:52.8]} 8... d4 {[%clk 0:03:01.5]} 9. Nb1 {[%clk 0:02:52.1]} 9... Nc6
{[%clk 0:02:58.8]} 10. e3 {[%clk 0:02:49.4]} 10... d3 {[%clk 0:02:54.9]} 11. a3
{[%clk 0:02:44.5]} 11... Bc5 {[%clk 0:02:40.9]} 12. b4 {[%clk 0:02:38.9]} 12...
Bb6 {[%clk 0:02:39.6]} 13. Nc3 {[%clk 0:02:38.1]} 13... O-O {[%clk 0:02:36.9]}
14. g3 {[%clk 0:02:32.2]} 14... Ne5 {[%clk 0:02:23.5]} 15. Bg2 {[%clk
0:02:31.1]} 15... Bg4 {[%clk 0:02:22.3]} 16. f3 {[%clk 0:02:27.6]} 16... Be6
{[%clk 0:02:21.8]} 17. O-O {[%clk 0:02:23.7]} 17... Rc8 {[%clk 0:02:21.8]} 18.
h4 {[%clk 0:02:16.6]} 18... Bxe3+ {[%clk 0:02:21.1]} 19. Kh2 {[%clk 0:02:12.2]}
19... Bd4 {[%clk 0:02:19.1]} 20. Re1 {[%clk 0:02:09.4]} 20... Ng6 {[%clk
0:02:16.2]} 21. Re4 {[%clk 0:01:59]} 21... Bf5 {[%clk 0:02:13.1]} 22. Rxd4
{[%clk 0:01:46.9]} 22... Qxd4 {[%clk 0:02:12.4]} 23. Bb2 {[%clk 0:01:46.3]}
23... Rfe8 {[%clk 0:02:08.5]} 24. Qf1 {[%clk 0:01:42.1]} 24... Qd6 {[%clk
0:02:01.7]} 25. f4 {[%clk 0:01:34.8]} 25... Qd7 {[%clk 0:01:51.5]} 26. Qf2
{[%clk 0:01:18]} 26... a6 {[%clk 0:01:48.4]} 27. Qf3 {[%clk 0:01:05]} 27... Rc7
{[%clk 0:01:41.6]} 28. h5 {[%clk 0:00:54.8]} 28... Nf8 {[%clk 0:01:40.8]} 29.
Qd5 {[%clk 0:00:47.3]} 29... Qxd5 {[%clk 0:01:38.2]} 30. Nxd5 {[%clk 0:00:45.1]}
30... Rc2 {[%clk 0:01:36.4]} 31. Bc3 {[%clk 0:00:43.1]} 31... Re2 {[%clk
0:01:35.4]} 32. Kh1 {[%clk 0:00:32.8]} 32... Bd7 {[%clk 0:01:26.2]} 33. h6
{[%clk 0:00:22.3]} 33... Bc6 {[%clk 0:01:17.2]} 34. hxg7 {[%clk 0:00:20.1]}
34... Nd7 {[%clk 0:01:15]} 35. Bf3 {[%clk 0:00:14.1]} 35... f6 {[%clk
0:01:08.5]} 36. Kg1 {[%clk 0:00:11.1]} 36... Bxd5 {[%clk 0:01:02.8]} 37. Bxd5+
{[%clk 0:00:10.5]} 37... Kxg7 {[%clk 0:01:02.8]} 38. Kf1 {[%clk 0:00:07.1]}
38... Nb6 {[%clk 0:00:58.4]} 39. Bxb7 {[%clk 0:00:06.7]} 39... Nc4 {[%clk
0:00:58.7]} 40. Bxa6 {[%clk 0:00:06.9]} 40... Nxd2+ {[%clk 0:00:58.9]} 41. Bxd2
{[%clk 0:00:06.4]} 41... Rexd2 {[%clk 0:00:57.1]} 42. Re1 {[%clk 0:00:03.3]}
42... Rf2+ {[%clk 0:00:57]} 43. Kg1 {[%clk 0:00:03.4]} 43... Rg2+ {[%clk
0:00:56.3]} 44. Kh1 {[%clk 0:00:03.1]} 44... Rh2+ {[%clk 0:00:54.6]} 45. Kg1
{[%clk 0:00:03.3]} 45... Rcg2+ {[%clk 0:00:55]} 46. Kf1 {[%clk 0:00:03.8]} 46...
d2 {[%clk 0:00:52.9]} 47. Rd1 {[%clk 0:00:03.7]} 47... Rh1+ {[%clk 0:00:48.9]}
48. Kxg2 {[%clk 0:00:04]} 48... Rxd1 {[%clk 0:00:49.5]} 49. Be2 {[%clk
0:00:04.3]} 49... Re1 {[%clk 0:00:48.6]} 50. Bg4 {[%clk 0:00:04.3]} 50... d1=Q
{[%clk 0:00:48]} 51. Bxd1 {[%clk 0:00:03.9]} 51... Rxd1 {[%clk 0:00:48.9]} 52.
a4 {[%clk 0:00:04.2]} 52... Rb1 {[%clk 0:00:48.6]} 53. a5 {[%clk 0:00:05.1]}
53... Rxb4 {[%clk 0:00:48.8]} 54. a6 {[%clk 0:00:05.3]} 54... Ra4 {[%clk
0:00:49.6]} 55. Kf3 {[%clk 0:00:06]} 55... Rxa6 {[%clk 0:00:49.7]} 56. Kg4
{[%clk 0:00:06.9]} 56... Ra5 {[%clk 0:00:49.7]} 57. Kh4 {[%clk 0:00:07.1]} 57...
h5 {[%clk 0:00:50.3]} 58. g4 {[%clk 0:00:06.9]} 58... hxg4 {[%clk 0:00:49.8]}
59. Kxg4 {[%clk 0:00:07.5]} 59... Kg6 {[%clk 0:00:49.8]} 60. Kh4 {[%clk
0:00:07.9]} 60... Kf5 {[%clk 0:00:49.5]} 61. Kh5 {[%clk 0:00:08.2]} 61... Kxf4+
{[%clk 0:00:50.4]} 0-1

[Event "Early-Titled-Tuesday-Blitz-May-28-2024"]
[Site "Chess.com"]
[Date "2024.05.28"]
[Round "9"]
[White "GothamChess"]
[Black "Sondremelaa"]
[Result "1-0"]
[WhiteElo "2785"]
[BlackElo "2577"]
[TimeControl "180+1"]
[EndTime "9:47:15 PDT"]
[Termination "GothamChess won on time"]

1. e4 {[%clk 0:03:00.5]} 1... e5 {[%clk 0:02:58.6]} 2. Nf3 {[%clk 0:03:00.7]}
2... Nc6 {[%clk 0:02:58.4]} 3. c3 {[%clk 0:03:01.2]} 3... Nf6 {[%clk 0:02:55.3]}
4. d4 {[%clk 0:03:00.5]} 4... Nxe4 {[%clk 0:02:50.6]} 5. d5 {[%clk 0:03:00.6]}
5... Bc5 {[%clk 0:02:50.2]} 6. dxc6 {[%clk 0:02:59.7]} 6... Bxf2+ {[%clk
0:02:49.8]} 7. Ke2 {[%clk 0:02:59.9]} 7... Bb6 {[%clk 0:02:37.1]} 8. Qd5 {[%clk
0:02:58.2]} 8... Nf2 {[%clk 0:02:16.2]} 9. Rg1 {[%clk 0:02:58.3]} 9... O-O
{[%clk 0:01:56.9]} 10. cxb7 {[%clk 0:02:52.6]} 10... Bxb7 {[%clk 0:01:56.4]} 11.
Qxb7 {[%clk 0:02:53.5]} 11... d5 {[%clk 0:01:47.4]} 12. Qc6 {[%clk 0:02:28.4]}
12... Rb8 {[%clk 0:01:09.4]} 13. b4 {[%clk 0:02:16.4]} 13... Ng4 {[%clk
0:01:00]} 14. Bg5 {[%clk 0:02:09.5]} 14... Qc8 {[%clk 0:00:50.7]} 15. Qxd5
{[%clk 0:01:52.5]} 15... Bxg1 {[%clk 0:00:28.8]} 16. Nxg1 {[%clk 0:01:53.4]}
16... Qf5 {[%clk 0:00:28.7]} 17. Nf3 {[%clk 0:01:44.1]} 17... h6 {[%clk
0:00:14.1]} 18. h3 {[%clk 0:01:17]} 18... Qc2+ {[%clk 0:00:14]} 19. Nbd2 {[%clk
0:01:08.9]} 19... hxg5 {[%clk 0:00:09.6]} 20. hxg4 {[%clk 0:01:08.6]} 20... Rbd8
{[%clk 0:00:06.6]} 21. Qe4 {[%clk 0:01:08.1]} 21... Qxc3 {[%clk 0:00:04.7]} 22.
Rd1 {[%clk 0:01:08.9]} 22... Rd7 {[%clk 0:00:02.3]} 23. Nxg5 {[%clk 0:01:07.9]}
23... Rfd8 {[%clk 0:00:02]} 24. Qh7+ {[%clk 0:01:02.1]} 24... Kf8 {[%clk
0:00:02]} 25. Nge4 {[%clk 0:01:03]} 25... Qc2 {[%clk 0:00:01.6]} 26. Qh8+ {[%clk
0:00:40.2]} 26... Ke7 {[%clk 0:00:02.1]} 27. Qxg7 {[%clk 0:00:40.2]} 27... Rd4
{[%clk 0:00:02.8]} 28. Qxe5+ {[%clk 0:00:39.7]} 28... Kf8 {[%clk 0:00:03.6]} 29.
Qc5+ {[%clk 0:00:36.4]} 29... Qxc5 {[%clk 0:00:01.5]} 30. bxc5 {[%clk
0:00:37.3]} 30... Kg7 {[%clk 0:00:01]} 31. Ke3 {[%clk 0:00:34.6]} 31... Ra4
{[%clk 0:00:01.5]} 32. Bc4 {[%clk 0:00:34]} 32... Ra3+ {[%clk 0:00:01.6]} 33.
Bb3 {[%clk 0:00:34.4]} 33... a5 {[%clk 0:00:01.6]} 34. Kf4 {[%clk 0:00:26.4]}
34... a4 {[%clk 0:00:01.6]} 35. Bc4 {[%clk 0:00:27.1]} 35... Rd4 {[%clk
0:00:01.8]} 36. Ke5 {[%clk 0:00:26.6]} 36... Rd8 {[%clk 0:00:01.7]} 37. Rf1
{[%clk 0:00:26.4]} 37... Re8+ {[%clk 0:00:02.3]} 38. Kd5 {[%clk 0:00:22.2]}
38... Rd8+ {[%clk 0:00:02.4]} 39. Kc6 {[%clk 0:00:22.9]} 39... Re3 {[%clk
0:00:02.1]} 40. Rxf7+ {[%clk 0:00:22.4]} 40... Kg6 {[%clk 0:00:02.2]} 41. Rxc7
{[%clk 0:00:22.2]} 41... a3 {[%clk 0:00:02.6]} 42. Rd7 {[%clk 0:00:22]} 42...
Rc8+ {[%clk 0:00:02.6]} 43. Kb7 {[%clk 0:00:21]} 43... Re8 {[%clk 0:00:02.4]}
44. c6 {[%clk 0:00:21.5]} 44... Re1 {[%clk 0:00:02.2]} 45. Bf7+ {[%clk
0:00:21.1]} 45... Kg7 {[%clk 0:00:01.9]} 46. Bxe8+ {[%clk 0:00:21.7]} 46... Kh8
{[%clk 0:00:02.6]} 47. c7 {[%clk 0:00:22]} 1-0

[Event "Early-Titled-Tuesday-Blitz-May-28-2024"]
[Site "Chess.com"]
[Date "2024.05.28"]
[Round "9"]
[White "jumpingknight20"]
[Black "DishonorOnYourCow"]
[Result "1-0"]
[WhiteElo "2792"]
[BlackElo "2586"]
[TimeControl "180+1"]
[EndTime "9:47:21 PDT"]
[Termination "jumpingknight20 won on time"]

1. Nf3 {[%clk 0:03:00.9]} 1... d5 {[%clk 0:02:59.5]} 2. g3 {[%clk 0:02:59.4]}
2... Nf6 {[%clk 0:02:57.7]} 3. Bg2 {[%clk 0:02:59.4]} 3... g6 {[%clk 0:02:58.1]}
4. O-O {[%clk 0:02:59.1]} 4... Bg7 {[%clk 0:02:58.7]} 5. d3 {[%clk 0:02:55]}
5... O-O {[%clk 0:02:57.5]} 6. Nbd2 {[%clk 0:02:54]} 6... c5 {[%clk 0:02:55.3]}
7. e4 {[%clk 0:02:53.7]} 7... dxe4 {[%clk 0:02:48.2]} 8. dxe4 {[%clk 0:02:52.5]}
8... Nc6 {[%clk 0:02:48.6]} 9. c3 {[%clk 0:02:50.6]} 9... Bg4 {[%clk 0:02:47.7]}
10. Qc2 {[%clk 0:02:49.6]} 10... Qc7 {[%clk 0:02:47.4]} 11. Nc4 {[%clk
0:02:31.1]} 11... Rad8 {[%clk 0:02:42.1]} 12. Bf4 {[%clk 0:02:30.2]} 12... Qc8
{[%clk 0:02:42]} 13. Rfd1 {[%clk 0:02:02.2]} 13... Bh3 {[%clk 0:02:18.1]} 14. e5
{[%clk 0:01:46.3]} 14... Bxg2 {[%clk 0:02:11.6]} 15. Kxg2 {[%clk 0:01:47.2]}
15... Nh5 {[%clk 0:02:04.8]} 16. Qe4 {[%clk 0:01:33.7]} 16... Nxf4+ {[%clk
0:01:59.4]} 17. Qxf4 {[%clk 0:01:32]} 17... b5 {[%clk 0:01:53.2]} 18. Ne3 {[%clk
0:01:28.8]} 18... Qb7 {[%clk 0:01:46.9]} 19. Kg1 {[%clk 0:01:22.5]} 19... Qb8
{[%clk 0:01:14.6]} 20. Ng4 {[%clk 0:01:09.2]} 20... h5 {[%clk 0:01:12.6]} 21.
Nh6+ {[%clk 0:01:08.6]} 21... Kh7 {[%clk 0:00:35.5]} 22. Nxf7 {[%clk 0:00:52.4]}
22... Rxd1+ {[%clk 0:00:32.4]} 23. Rxd1 {[%clk 0:00:53.3]} 23... e6 {[%clk
0:00:18]} 24. N7g5+ {[%clk 0:00:44.4]} 24... Kg8 {[%clk 0:00:17.6]} 25. Qe4
{[%clk 0:00:43.6]} 25... Nxe5 {[%clk 0:00:17]} 26. Nxe5 {[%clk 0:00:42.7]} 26...
Qxe5 {[%clk 0:00:16.9]} 27. Qxg6 {[%clk 0:00:42.9]} 27... Qf5 {[%clk 0:00:14.4]}
28. Qxe6+ {[%clk 0:00:39.3]} 28... Qxe6 {[%clk 0:00:08.6]} 29. Nxe6 {[%clk
0:00:40.2]} 29... Re8 {[%clk 0:00:08.2]} 30. Nxg7 {[%clk 0:00:26.3]} 30... Kxg7
{[%clk 0:00:09.1]} 31. Kf1 {[%clk 0:00:27]} 31... Kf6 {[%clk 0:00:07]} 32. Rd5
{[%clk 0:00:26.8]} 32... b4 {[%clk 0:00:01.3]} 33. Rxh5 {[%clk 0:00:20.5]} 33...
bxc3 {[%clk 0:00:01.3]} 34. bxc3 {[%clk 0:00:21.4]} 34... Rc8 {[%clk 0:00:01]}
35. c4 {[%clk 0:00:17.5]} 35... Ke6 {[%clk 0:00:01.2]} 36. Rd5 {[%clk
0:00:16.9]} 36... a5 {[%clk 0:00:01]} 37. h4 {[%clk 0:00:17]} 37... a4 {[%clk
0:00:01.9]} 38. Kg2 {[%clk 0:00:16.7]} 38... a3 {[%clk 0:00:02.2]} 39. h5 {[%clk
0:00:16.6]} 39... Rb8 {[%clk 0:00:01.4]} 40. Rxc5 {[%clk 0:00:16.8]} 40... Rb2
{[%clk 0:00:01.9]} 41. h6 {[%clk 0:00:16.3]} 41... Kf7 {[%clk 0:00:01.5]} 42.
Rg5 {[%clk 0:00:15]} 42... Rxa2 {[%clk 0:00:01]} 43. h7 {[%clk 0:00:15.3]} 1-0

[Event "Early-Titled-Tuesday-Blitz-May-28-2024"]
[Site "Chess.com"]
[Date "2024.05.28"]
[Round "9"]
[White "VirtualCoach"]
[Black "ailime26"]
[Result "1-0"]
[WhiteElo "2179"]
[BlackElo "2053"]
[TimeControl "180+1"]
[EndTime "9:47:24 PDT"]
[Termination "VirtualCoach won on time"]

1. Nf3 {[%clk 0:02:51.4]} 1... Nf6 {[%clk 0:02:58.2]} 2. c4 {[%clk 0:02:47.3]}
2... c5 {[%clk 0:02:57.5]} 3. Nc3 {[%clk 0:02:46.4]} 3... g6 {[%clk 0:02:56.9]}
4. d4 {[%clk 0:02:45.9]} 4... cxd4 {[%clk 0:02:56.4]} 5. Nxd4 {[%clk 0:02:46.8]}
5... Bg7 {[%clk 0:02:54.3]} 6. e4 {[%clk 0:02:46.8]} 6... O-O {[%clk 0:02:52.1]}
7. Be3 {[%clk 0:02:46.8]} 7... a6 {[%clk 0:02:44.6]} 8. Be2 {[%clk 0:02:43.5]}
8... Qc7 {[%clk 0:02:43.6]} 9. O-O {[%clk 0:02:41.3]} 9... d6 {[%clk 0:02:41.4]}
10. Rc1 {[%clk 0:02:38.2]} 10... Nbd7 {[%clk 0:02:38.3]} 11. Nd5 {[%clk
0:02:30.1]} 11... Nxd5 {[%clk 0:02:31.6]} 12. cxd5 {[%clk 0:02:30.4]} 12... Qa5
{[%clk 0:02:28.1]} 13. a3 {[%clk 0:02:20.6]} 13... Nf6 {[%clk 0:01:59.9]} 14. f3
{[%clk 0:02:18.4]} 14... Bd7 {[%clk 0:01:58.7]} 15. Nb3 {[%clk 0:01:47.3]} 15...
Qd8 {[%clk 0:01:48.7]} 16. Bd4 {[%clk 0:01:47.1]} 16... Rc8 {[%clk 0:01:47.2]}
17. Nd2 {[%clk 0:01:41.1]} 17... Nxd5 {[%clk 0:00:58.1]} 18. Nc4 {[%clk
0:00:51.3]} 18... Bxd4+ {[%clk 0:00:52.5]} 19. Qxd4 {[%clk 0:00:52.2]} 19... Nf6
{[%clk 0:00:52.1]} 20. Nb6 {[%clk 0:00:47.7]} 20... Rxc1 {[%clk 0:00:50.8]} 21.
Rxc1 {[%clk 0:00:47.4]} 21... Bc6 {[%clk 0:00:45.1]} 22. Rd1 {[%clk 0:00:41.4]}
22... Nd7 {[%clk 0:00:37.8]} 23. Nc4 {[%clk 0:00:34.7]} 23... b5 {[%clk
0:00:34.6]} 24. Ne3 {[%clk 0:00:32.3]} 24... Qb6 {[%clk 0:00:33]} 25. Qd2 {[%clk
0:00:31.8]} 25... Rc8 {[%clk 0:00:30.5]} 26. Kh1 {[%clk 0:00:30.8]} 26... Nc5
{[%clk 0:00:23.6]} 27. Ng4 {[%clk 0:00:25.5]} 27... Bd7 {[%clk 0:00:20]} 28.
Nh6+ {[%clk 0:00:22.3]} 28... Kg7 {[%clk 0:00:20.1]} 29. Qf4 {[%clk 0:00:15.7]}
29... e5 {[%clk 0:00:14]} 30. Qxf7+ {[%clk 0:00:13.9]} 30... Kh8 {[%clk
0:00:12.6]} 31. Qe7 {[%clk 0:00:10.3]} 31... d5 {[%clk 0:00:05.5]} 32. Nf7+
{[%clk 0:00:09.7]} 32... Kg8 {[%clk 0:00:04.5]} 33. Ng5 {[%clk 0:00:09.6]} 33...
Be6 {[%clk 0:00:01.4]} 34. Qxh7+ {[%clk 0:00:06.7]} 34... Kf8 {[%clk 0:00:01.7]}
35. Qh8+ {[%clk 0:00:06.5]} 35... Ke7 {[%clk 0:00:01.2]} 36. Qxe5 {[%clk
0:00:07]} 1-0

[Event "Early-Titled-Tuesday-Blitz-May-28-2024"]
[Site "Chess.com"]
[Date "2024.05.28"]
[Round "9"]
[White "andbluesky"]
[Black "zurzan"]
[Result "0-1"]
[WhiteElo "1698"]
[BlackElo "2142"]
[TimeControl "180+1"]
[EndTime "9:47:26 PDT"]
[Termination "zurzan won on time"]

1. e4 {[%clk 0:03:00.9]} 1... c5 {[%clk 0:02:59.3]} 2. Nf3 {[%clk 0:02:59.9]}
2... d6 {[%clk 0:02:59.6]} 3. d4 {[%clk 0:02:59.3]} 3... cxd4 {[%clk 0:03:00.5]}
4. Qxd4 {[%clk 0:02:58.9]} 4... Nc6 {[%clk 0:02:59.4]} 5. Bb5 {[%clk 0:02:58.8]}
5... Bd7 {[%clk 0:02:56.8]} 6. Bxc6 {[%clk 0:02:56.2]} 6... bxc6 {[%clk
0:02:56.4]} 7. c4 {[%clk 0:02:51.8]} 7... Qb6 {[%clk 0:02:55.5]} 8. Be3 {[%clk
0:02:47.6]} 8... Qxd4 {[%clk 0:02:55.1]} 9. Nxd4 {[%clk 0:02:44]} 9... Nf6
{[%clk 0:02:55.5]} 10. Nc3 {[%clk 0:02:42.7]} 10... Rb8 {[%clk 0:02:53]} 11. b3
{[%clk 0:02:38.6]} 11... g6 {[%clk 0:02:50.7]} 12. O-O {[%clk 0:02:35.9]} 12...
Bg7 {[%clk 0:02:50.5]} 13. Rfd1 {[%clk 0:02:31.6]} 13... O-O {[%clk 0:02:49.2]}
14. f3 {[%clk 0:02:20]} 14... a6 {[%clk 0:02:48.7]} 15. Rac1 {[%clk 0:02:18.6]}
15... Rfc8 {[%clk 0:02:32.4]} 16. Kf2 {[%clk 0:02:05.7]} 16... h5 {[%clk
0:02:30.6]} 17. h3 {[%clk 0:02:04.7]} 17... c5 {[%clk 0:02:10.2]} 18. Nde2
{[%clk 0:01:57.8]} 18... Bc6 {[%clk 0:01:55.6]} 19. Nf4 {[%clk 0:01:50]} 19...
a5 {[%clk 0:01:42.7]} 20. Nfd5 {[%clk 0:01:48.2]} 20... Bxd5 {[%clk 0:01:40.9]}
21. exd5 {[%clk 0:01:42.3]} 21... Nd7 {[%clk 0:01:33.9]} 22. f4 {[%clk
0:01:36.6]} 22... Nb6 {[%clk 0:01:33.6]} 23. g4 {[%clk 0:01:25.1]} 23... hxg4
{[%clk 0:01:27.7]} 24. hxg4 {[%clk 0:01:26]} 24... a4 {[%clk 0:01:27.8]} 25. f5
{[%clk 0:01:18.9]} 25... axb3 {[%clk 0:01:26.7]} 26. axb3 {[%clk 0:01:18]} 26...
Nd7 {[%clk 0:01:26.2]} 27. Nb5 {[%clk 0:01:06.3]} 27... Ne5 {[%clk 0:01:24.6]}
28. Kg3 {[%clk 0:01:01.2]} 28... Ra8 {[%clk 0:01:17.3]} 29. Bf4 {[%clk
0:00:34.7]} 29... Ra2 {[%clk 0:01:13.5]} 30. Rd2 {[%clk 0:00:29.5]} 30... Rxd2
{[%clk 0:01:06.8]} 31. Bxd2 {[%clk 0:00:30.4]} 31... Ra8 {[%clk 0:01:06.1]} 32.
Bc3 {[%clk 0:00:26.7]} 32... Ra2 {[%clk 0:01:04.6]} 33. Ra1 {[%clk 0:00:23.5]}
33... Re2 {[%clk 0:00:57.1]} 34. Ra8+ {[%clk 0:00:17.1]} 34... Kh7 {[%clk
0:00:57.2]} 35. Kf4 {[%clk 0:00:10.9]} 35... Rf2+ {[%clk 0:00:54]} 36. Kg3
{[%clk 0:00:09.8]} 36... Rf3+ {[%clk 0:00:53.9]} 37. Kg2 {[%clk 0:00:09.9]}
37... Rf4 {[%clk 0:00:51]} 38. Ra2 {[%clk 0:00:07.1]} 38... Rxg4+ {[%clk
0:00:50.2]} 39. Kf2 {[%clk 0:00:05.8]} 39... Nd3+ {[%clk 0:00:47.5]} 40. Ke3
{[%clk 0:00:05.1]} 40... Rg3+ {[%clk 0:00:46]} 41. Ke2 {[%clk 0:00:04]} 41...
Rg2+ {[%clk 0:00:44.9]} 42. Kxd3 {[%clk 0:00:04.2]} 42... Rxa2 {[%clk
0:00:44.7]} 43. Bxg7 {[%clk 0:00:04.6]} 43... Kxg7 {[%clk 0:00:44.5]} 44. fxg6
{[%clk 0:00:04.7]} 44... fxg6 {[%clk 0:00:44.4]} 45. Ke4 {[%clk 0:00:03.8]}
45... Rf2 {[%clk 0:00:42.1]} 46. Nc7 {[%clk 0:00:03]} 46... Kf6 {[%clk
0:00:36.7]} 47. Ne8+ {[%clk 0:00:01.2]} 47... Kf7 {[%clk 0:00:34.9]} 48. Nc7
{[%clk 0:00:02.1]} 48... g5 {[%clk 0:00:34.4]} 49. Nb5 {[%clk 0:00:02.1]} 49...
g4 {[%clk 0:00:33.8]} 50. Ke3 {[%clk 0:00:02.3]} 50... Rb2 {[%clk 0:00:31.6]}
51. Kf4 {[%clk 0:00:01.6]} 51... Rxb3 {[%clk 0:00:31]} 52. Kxg4 {[%clk
0:00:01.2]} 52... Rb4 {[%clk 0:00:31.9]} 53. Nc7 {[%clk 0:00:01]} 53... Rxc4+
{[%clk 0:00:32.1]} 0-1

[Event "Early-Titled-Tuesday-Blitz-May-28-2024"]
[Site "Chess.com"]
[Date "2024.05.28"]
[Round "9"]
[White "mortngabriel"]
[Black "crazy_but_lazy"]
[Result "0-1"]
[WhiteElo "2484"]
[BlackElo "2676"]
[TimeControl "180+1"]
[EndTime "9:47:27 PDT"]
[Termination "crazy_but_lazy won on time"]

1. e4 {[%clk 0:03:00.9]} 1... c6 {[%clk 0:02:59.9]} 2. Nf3 {[%clk 0:02:56.8]}
2... d5 {[%clk 0:03:00]} 3. Nc3 {[%clk 0:02:57.4]} 3... dxe4 {[%clk 0:02:57.6]}
4. Nxe4 {[%clk 0:02:58.3]} 4... Nf6 {[%clk 0:02:57.9]} 5. Qe2 {[%clk 0:02:58.6]}
5... Nxe4 {[%clk 0:02:57.6]} 6. Qxe4 {[%clk 0:02:59.5]} 6... Be6 {[%clk
0:02:58.2]} 7. c4 {[%clk 0:02:38.7]} 7... Nd7 {[%clk 0:02:52.4]} 8. d4 {[%clk
0:02:31.5]} 8... Nf6 {[%clk 0:02:50.8]} 9. Qe3 {[%clk 0:02:05]} 9... Bg4 {[%clk
0:02:44.5]} 10. Be2 {[%clk 0:02:03.9]} 10... e6 {[%clk 0:02:44.5]} 11. O-O
{[%clk 0:02:02.7]} 11... Be7 {[%clk 0:02:44.2]} 12. b3 {[%clk 0:02:00.7]} 12...
O-O {[%clk 0:02:44.1]} 13. Bb2 {[%clk 0:02:00.4]} 13... a5 {[%clk 0:02:44.4]}
14. Ne5 {[%clk 0:01:59.4]} 14... Bxe2 {[%clk 0:02:43.8]} 15. Qxe2 {[%clk
0:02:00.3]} 15... a4 {[%clk 0:02:44]} 16. Rad1 {[%clk 0:01:53.8]} 16... axb3
{[%clk 0:02:38.8]} 17. axb3 {[%clk 0:01:54.7]} 17... Ra2 {[%clk 0:02:39.1]} 18.
Ra1 {[%clk 0:01:51.4]} 18... Qa5 {[%clk 0:02:34]} 19. Bc3 {[%clk 0:01:16.2]}
19... Rxe2 {[%clk 0:02:29.1]} 20. Bxa5 {[%clk 0:01:06.9]} 20... Rb2 {[%clk
0:02:14.6]} 21. Rab1 {[%clk 0:01:03.8]} 21... Rxb1 {[%clk 0:02:12.4]} 22. Rxb1
{[%clk 0:01:03.6]} 22... Ra8 {[%clk 0:02:13.1]} 23. Bc3 {[%clk 0:00:52.8]} 23...
Ne4 {[%clk 0:02:06.5]} 24. Be1 {[%clk 0:00:47.8]} 24... Bf6 {[%clk 0:01:50]} 25.
f3 {[%clk 0:00:41.5]} 25... Bxe5 {[%clk 0:01:37.6]} 26. dxe5 {[%clk 0:00:41.2]}
26... Nc5 {[%clk 0:01:38.3]} 27. Bf2 {[%clk 0:00:30.4]} 27... Nd3 {[%clk
0:01:31.8]} 28. Rd1 {[%clk 0:00:28.5]} 28... Nxe5 {[%clk 0:01:29.4]} 29. Bg3
{[%clk 0:00:26.7]} 29... Ng6 {[%clk 0:01:16.8]} 30. Rd7 {[%clk 0:00:26.3]} 30...
b5 {[%clk 0:01:08.8]} 31. cxb5 {[%clk 0:00:27.2]} 31... cxb5 {[%clk 0:01:09.6]}
32. Rb7 {[%clk 0:00:27.6]} 32... e5 {[%clk 0:00:58.3]} 33. h4 {[%clk 0:00:25.4]}
33... h5 {[%clk 0:00:50.5]} 34. Rxb5 {[%clk 0:00:24]} 34... Ra1+ {[%clk
0:00:50.7]} 35. Kh2 {[%clk 0:00:23.3]} 35... f6 {[%clk 0:00:51.3]} 36. Rb8+
{[%clk 0:00:21.6]} 36... Kf7 {[%clk 0:00:51.7]} 37. b4 {[%clk 0:00:21.6]} 37...
Ne7 {[%clk 0:00:50.9]} 38. Bf2 {[%clk 0:00:17.3]} 38... Ra2 {[%clk 0:00:42.6]}
39. Kg1 {[%clk 0:00:16.4]} 39... Rb2 {[%clk 0:00:31.9]} 40. b5 {[%clk
0:00:15.6]} 40... Ke6 {[%clk 0:00:32.3]} 41. b6 {[%clk 0:00:14.4]} 41... Rb1+
{[%clk 0:00:32.6]} 42. Kh2 {[%clk 0:00:14.1]} 42... Rb2 {[%clk 0:00:33.5]} 43.
Kh1 {[%clk 0:00:14.6]} 43... Rxf2 {[%clk 0:00:29.2]} 44. b7 {[%clk 0:00:07.4]}
44... Rb2 {[%clk 0:00:28.5]} 45. Kh2 {[%clk 0:00:04.5]} 45... Rb4 {[%clk
0:00:21.1]} 46. Kg3 {[%clk 0:00:03.5]} 46... Kf7 {[%clk 0:00:21.4]} 47. Kh3
{[%clk 0:00:03.3]} 47... Nf5 {[%clk 0:00:19.9]} 48. g4 {[%clk 0:00:02.8]} 48...
hxg4+ {[%clk 0:00:19.9]} 49. fxg4 {[%clk 0:00:03.7]} 49... Rb3+ {[%clk
0:00:20.6]} 50. Kh2 {[%clk 0:00:02.1]} 50... Nxh4 {[%clk 0:00:20.6]} 51. g5
{[%clk 0:00:00.9]} 51... Nf3+ {[%clk 0:00:20.3]} 0-1